[Event "Titled Tuesday Blitz December 13 Late 2022"]
[White "Annaberdiyev, Babageldi"]
[Black "Naroditsky, Daniel"]
[WhiteFideId "14000385"]
[BlackFideId "2026961"]
[WhiteElo "2332"]
[BlackElo "2628"]
[Result "0-1"]
[Round "02"]
[TimeControl "180+1"]
[Date "2022.12.13"]
[WhiteClock "0:00:12"]
[BlackClock "0:00:05"]

1. e4 {[%clk 0:02:57]}  c6 {[%clk 0:02:58]} 2. d4 {[%clk 0:02:57]}  d5 {[%clk 0:02:58]} 3. Nd2 {[%clk 0:02:58]}  dxe4 {[%clk 0:02:55]} 4. Nxe4 {[%clk 0:02:57]}  Nf6 {[%clk 0:02:56]} 5. Nxf6+ {[%clk 0:02:58]}  exf6 {[%clk 0:02:55]} 6. Bc4 {[%clk 0:02:59]}  Bd6 {[%clk 0:02:38]} 7. Qe2+ {[%clk 0:02:58]}  Be7 {[%clk 0:02:26]} 8. Nf3 {[%clk 0:02:57]}  O-O {[%clk 0:02:26]} 9. O-O {[%clk 0:02:57]}  Bg4 {[%clk 0:02:25]} 10. h3 {[%clk 0:02:56]}  Bh5 {[%clk 0:02:24]} 11. c3 {[%clk 0:02:29]}  Bd6 {[%clk 0:02:00]} 12. Re1 {[%clk 0:02:28]}  Nd7 {[%clk 0:01:59]} 13. Bd2 {[%clk 0:02:25]}  Nb6 {[%clk 0:01:50]} 14. Bd3 {[%clk 0:02:24]}  Bc7 {[%clk 0:01:45]} 15. g4 {[%clk 0:02:19]}  Bg6 {[%clk 0:01:45]} 16. Bxg6 {[%clk 0:02:17]}  hxg6 {[%clk 0:01:46]} 17. Kg2 {[%clk 0:02:15]}  Qd5 {[%clk 0:01:44]} 18. b3 {[%clk 0:02:12]}  Qd7 {[%clk 0:01:35]} 19. Qe7 {[%clk 0:02:09]}  Rad8 {[%clk 0:01:33]} 20. Qxd7 {[%clk 0:02:05]}  Rxd7 {[%clk 0:01:34]} 21. c4 {[%clk 0:02:04]}  Rfd8 {[%clk 0:01:29]} 22. Bc3 {[%clk 0:02:00]}  Nc8 {[%clk 0:01:26]} 23. a4 {[%clk 0:01:58]}  f5 {[%clk 0:01:18]} 24. a5 {[%clk 0:01:56]}  Bf4 {[%clk 0:00:51]} 25. a6 {[%clk 0:01:50]}  b6 {[%clk 0:00:42]} 26. Re2 {[%clk 0:01:50]}  Nd6 {[%clk 0:00:41]} 27. Rae1 {[%clk 0:01:44]}  Ne4 {[%clk 0:00:41]} 28. Rxe4 {[%clk 0:01:37]}  fxe4 {[%clk 0:00:41]} 29. Rxe4 {[%clk 0:01:38]}  Bb8 {[%clk 0:00:26]} 30. g5 {[%clk 0:01:31]}  Bd6 {[%clk 0:00:23]} 31. h4 {[%clk 0:01:29]}  Re7 {[%clk 0:00:21]} 32. Rxe7 {[%clk 0:01:27]}  Bxe7 {[%clk 0:00:22]} 33. Ne5 {[%clk 0:01:25]}  Rc8 {[%clk 0:00:23]} 34. f4 {[%clk 0:01:19]}  Bd6 {[%clk 0:00:21]} 35. Kf3 {[%clk 0:01:16]}  Kf8 {[%clk 0:00:20]} 36. Ke4 {[%clk 0:01:12]}  Ke7 {[%clk 0:00:19]} 37. Be1 {[%clk 0:00:59]}  Bxe5 {[%clk 0:00:13]} 38. fxe5 {[%clk 0:01:00]}  Ke6 {[%clk 0:00:08]} 39. Bg3 {[%clk 0:00:57]}  Rd8 {[%clk 0:00:07]} 40. Bf4 {[%clk 0:00:55]}  Rd7 {[%clk 0:00:04]} 41. Bg3 {[%clk 0:00:53]}  Rd8 {[%clk 0:00:04]} 42. Bf4 {[%clk 0:00:52]}  Rc8 {[%clk 0:00:04]} 43. Be3 {[%clk 0:00:41]}  Kd7 {[%clk 0:00:03]} 44. Bf4 {[%clk 0:00:38]}  b5 {[%clk 0:00:02]} 45. Bg3 {[%clk 0:00:35]}  bxc4 {[%clk 0:00:03]} 46. bxc4 {[%clk 0:00:36]}  Rh8 {[%clk 0:00:03]} 47. Kd3 {[%clk 0:00:22]}  Ke6 {[%clk 0:00:03]} 48. Ke4 {[%clk 0:00:21]}  Kd7 {[%clk 0:00:03]} 49. Kd3 {[%clk 0:00:20]}  Rf8 {[%clk 0:00:02]} 50. Ke4 {[%clk 0:00:18]}  f6 {[%clk 0:00:03]} 51. d5 {[%clk 0:00:16]}  cxd5+ {[%clk 0:00:03]} 52. cxd5 {[%clk 0:00:15]}  fxe5 {[%clk 0:00:03]} 53. Bxe5 {[%clk 0:00:15]}  Rf1 {[%clk 0:00:03]} 54. Bxg7 {[%clk 0:00:15]}  Rh1 {[%clk 0:00:01]} 55. Bf6 {[%clk 0:00:15]}  Rxh4+ {[%clk 0:00:02]} 56. Ke5 {[%clk 0:00:15]}  Ra4 {[%clk 0:00:02]} 57. Bg7 {[%clk 0:00:16]}  Rxa6 {[%clk 0:00:03]} 58. Bf8 {[%clk 0:00:16]}  Ra4 {[%clk 0:00:02]} 59. Kf6 {[%clk 0:00:17]}  Rf4+ {[%clk 0:00:02]} 60. Kg7 {[%clk 0:00:17]}  a5 {[%clk 0:00:03]} 61. Bc5 {[%clk 0:00:17]}  Rf5 {[%clk 0:00:03]} 62. Kxg6 {[%clk 0:00:17]}  Rxd5 {[%clk 0:00:04]} 63. Bf8 {[%clk 0:00:16]}  Ke6 {[%clk 0:00:04]} 64. Kh6 {[%clk 0:00:16]}  Kf7 {[%clk 0:00:04]} 65. Ba3 {[%clk 0:00:14]}  Kg8 {[%clk 0:00:04]} 66. g6 {[%clk 0:00:14]}  Rd3 {[%clk 0:00:04]} 67. Be7 {[%clk 0:00:12]}  a4 {[%clk 0:00:05]} 0-1


[Site "https://www.chess.com"]

[Event "Titled Tuesday Blitz December 13 Late 2022"]
[White "Ansh M Shah"]
[Black "Erdogdu, Mert"]
[WhiteFideId "25033379"]
[BlackFideId "6301495"]
[WhiteElo "2084"]
[BlackElo "2408"]
[Result "0-1"]
[Round "02"]
[TimeControl "180+1"]
[Date "2022.12.14"]
[WhiteClock "0:00:14"]
[BlackClock "0:00:22"]

1. d4 {[%clk 0:03:00]}  d5 {[%clk 0:02:59]} 2. c4 {[%clk 0:03:00]}  e6 {[%clk 0:03:00]} 3. g3 {[%clk 0:03:00]}  c5 {[%clk 0:03:00]} 4. cxd5 {[%clk 0:02:59]}  exd5 {[%clk 0:03:01]} 5. Nf3 {[%clk 0:02:59]}  Nf6 {[%clk 0:03:01]} 6. Bg2 {[%clk 0:02:59]}  Nc6 {[%clk 0:03:02]} 7. O-O {[%clk 0:03:00]}  Be7 {[%clk 0:03:02]} 8. dxc5 {[%clk 0:02:58]}  Bxc5 {[%clk 0:03:03]} 9. a3 {[%clk 0:02:59]}  Ne4 {[%clk 0:03:03]} 10. b4 {[%clk 0:02:59]}  Bb6 {[%clk 0:03:03]} 11. Bb2 {[%clk 0:02:59]}  O-O {[%clk 0:03:03]} 12. Nbd2 {[%clk 0:02:58]}  Qe7 {[%clk 0:02:59]} 13. Nb3 {[%clk 0:02:57]}  Rd8 {[%clk 0:02:59]} 14. Nbd4 {[%clk 0:02:58]}  Bg4 {[%clk 0:02:59]} 15. Nxc6 {[%clk 0:02:56]}  bxc6 {[%clk 0:02:59]} 16. Bd4 {[%clk 0:02:57]}  Rac8 {[%clk 0:02:56]} 17. Rc1 {[%clk 0:02:56]}  Qe6 {[%clk 0:02:02]} 18. Bxb6 {[%clk 0:02:31]}  axb6 {[%clk 0:02:03]} 19. Nd4 {[%clk 0:02:31]}  Qh6 {[%clk 0:02:03]} 20. f3 {[%clk 0:02:23]}  Qe3+ {[%clk 0:02:02]} 21. Kh1 {[%clk 0:02:23]}  Nxg3+ {[%clk 0:02:00]} 22. hxg3 {[%clk 0:02:21]}  Rd6 {[%clk 0:02:00]} 23. Qd3 {[%clk 0:00:50]}  Rh6+ {[%clk 0:01:49]} 24. Bh3 {[%clk 0:00:50]}  Qxd3 {[%clk 0:01:16]} 25. exd3 {[%clk 0:00:49]}  Bxh3 {[%clk 0:01:16]} 26. Rfe1 {[%clk 0:00:49]}  Kf8 {[%clk 0:01:02]} 27. Kg1 {[%clk 0:00:44]}  Bd7 {[%clk 0:01:02]} 28. Nb3 {[%clk 0:00:40]}  Ra8 {[%clk 0:00:53]} 29. Ra1 {[%clk 0:00:35]}  Ra4 {[%clk 0:00:47]} 30. d4 {[%clk 0:00:34]}  Rf6 {[%clk 0:00:42]} 31. Re3 {[%clk 0:00:33]}  Re6 {[%clk 0:00:41]} 32. Kf2 {[%clk 0:00:33]}  Rxe3 {[%clk 0:00:41]} 33. Kxe3 {[%clk 0:00:34]}  Ke7 {[%clk 0:00:41]} 34. Nd2 {[%clk 0:00:31]}  Kd6 {[%clk 0:00:39]} 35. f4 {[%clk 0:00:31]}  Ra8 {[%clk 0:00:39]} 36. Nf3 {[%clk 0:00:31]}  f6 {[%clk 0:00:39]} 37. a4 {[%clk 0:00:28]}  Re8+ {[%clk 0:00:35]} 38. Kf2 {[%clk 0:00:26]}  c5 {[%clk 0:00:28]} 39. dxc5+ {[%clk 0:00:21]}  bxc5 {[%clk 0:00:28]} 40. bxc5+ {[%clk 0:00:19]}  Kxc5 {[%clk 0:00:29]} 41. a5 {[%clk 0:00:19]}  Ra8 {[%clk 0:00:28]} 42. Ke3 {[%clk 0:00:18]}  Bb5 {[%clk 0:00:27]} 43. f5 {[%clk 0:00:14]}  Re8+ {[%clk 0:00:22]} 44. Kf4 {[%clk 0:00:14]}  Re4# {[%clk 0:00:22]} 0-1


[Site "https://www.chess.com"]

[Event "Titled Tuesday Blitz December 13 Late 2022"]
[White "Arkell, Keith C"]
[Black "Xiong, Jeffery"]
[WhiteFideId "400270"]
[BlackFideId "2047640"]
[WhiteElo "2356"]
[BlackElo "2726"]
[Result "0-1"]
[Round "02"]
[TimeControl "180+1"]
[Date "2022.12.13"]
[WhiteClock "0:00:20"]
[BlackClock "0:00:28"]

1. d4 {[%clk 0:02:48]}  e6 {[%clk 0:02:58]} 2. Nf3 {[%clk 0:02:47]}  Nf6 {[%clk 0:02:48]} 3. c4 {[%clk 0:02:47]}  d5 {[%clk 0:02:45]} 4. cxd5 {[%clk 0:02:47]}  exd5 {[%clk 0:02:45]} 5. Nc3 {[%clk 0:02:48]}  c6 {[%clk 0:02:44]} 6. Qc2 {[%clk 0:02:45]}  g6 {[%clk 0:02:41]} 7. Bg5 {[%clk 0:02:42]}  Be7 {[%clk 0:02:39]} 8. Bxf6 {[%clk 0:02:40]}  Bxf6 {[%clk 0:02:40]} 9. e3 {[%clk 0:02:41]}  a5 {[%clk 0:02:37]} 10. h3 {[%clk 0:02:36]}  O-O {[%clk 0:02:37]} 11. Bd3 {[%clk 0:02:37]}  Re8 {[%clk 0:02:38]} 12. O-O {[%clk 0:02:37]}  Na6 {[%clk 0:02:38]} 13. a3 {[%clk 0:02:37]}  Nc7 {[%clk 0:02:39]} 14. b4 {[%clk 0:02:31]}  Qd6 {[%clk 0:02:36]} 15. Rab1 {[%clk 0:02:26]}  b5 {[%clk 0:02:33]} 16. bxa5 {[%clk 0:02:16]}  Qxa3 {[%clk 0:02:22]} 17. Ra1 {[%clk 0:02:13]}  Qf8 {[%clk 0:02:08]} 18. Ne2 {[%clk 0:01:53]}  Bd7 {[%clk 0:02:04]} 19. Rfc1 {[%clk 0:01:46]}  Na6 {[%clk 0:02:05]} 20. Qd2 {[%clk 0:01:35]}  c5 {[%clk 0:01:59]} 21. Nf4 {[%clk 0:01:25]}  Bc6 {[%clk 0:01:59]} 22. dxc5 {[%clk 0:01:19]}  Bxa1 {[%clk 0:02:00]} 23. Rxa1 {[%clk 0:01:19]}  Nxc5 {[%clk 0:02:00]} 24. Nd4 {[%clk 0:01:18]}  Rec8 {[%clk 0:01:55]} 25. Nxc6 {[%clk 0:01:16]}  Rxc6 {[%clk 0:01:56]} 26. Nxd5 {[%clk 0:01:15]}  Nb3 {[%clk 0:01:53]} 27. Qb2 {[%clk 0:01:07]}  Nxa1 {[%clk 0:01:53]} 28. Qxa1 {[%clk 0:01:06]}  Qd8 {[%clk 0:01:44]} 29. e4 {[%clk 0:01:02]}  Rxa5 {[%clk 0:01:36]} 30. Qe5 {[%clk 0:00:55]}  Re6 {[%clk 0:01:19]} 31. Qc3 {[%clk 0:00:55]}  Rd6 {[%clk 0:01:03]} 32. g3 {[%clk 0:00:50]}  Ra4 {[%clk 0:00:57]} 33. Qe5 {[%clk 0:00:36]}  Re6 {[%clk 0:00:51]} 34. Qc3 {[%clk 0:00:33]}  h5 {[%clk 0:00:40]} 35. h4 {[%clk 0:00:32]}  Rd6 {[%clk 0:00:39]} 36. Qe5 {[%clk 0:00:23]}  Re6 {[%clk 0:00:29]} 37. Qc3 {[%clk 0:00:23]}  b4 {[%clk 0:00:29]} 38. Nxb4 {[%clk 0:00:20]}  Rxb4 {[%clk 0:00:28]} 0-1


[Site "https://www.chess.com"]

[Event "Titled Tuesday Blitz December 13 Late 2022"]
[White "Averjanov, Alexey"]
[Black "Paravyan, David"]
[WhiteFideId "14109867"]
[BlackFideId "4194985"]
[WhiteElo "2638"]
[BlackElo "2551"]
[Result "1/2-1/2"]
[Round "02"]
[TimeControl "180+1"]
[Date "2022.12.13"]
[WhiteClock "0:00:05"]
[BlackClock "0:00:06"]

1. d4 {[%clk 0:03:00]}  Nf6 {[%clk 0:02:59]} 2. c4 {[%clk 0:03:00]}  g6 {[%clk 0:03:00]} 3. Nc3 {[%clk 0:02:59]}  d5 {[%clk 0:03:00]} 4. cxd5 {[%clk 0:02:55]}  Nxd5 {[%clk 0:03:01]} 5. e4 {[%clk 0:02:56]}  Nxc3 {[%clk 0:03:01]} 6. bxc3 {[%clk 0:02:56]}  Bg7 {[%clk 0:03:02]} 7. Nf3 {[%clk 0:02:54]}  c5 {[%clk 0:03:02]} 8. Be3 {[%clk 0:02:53]}  Nc6 {[%clk 0:03:02]} 9. Qd2 {[%clk 0:02:52]}  cxd4 {[%clk 0:03:01]} 10. cxd4 {[%clk 0:02:52]}  Bg4 {[%clk 0:03:01]} 11. Rd1 {[%clk 0:02:45]}  O-O {[%clk 0:03:02]} 12. Be2 {[%clk 0:02:41]}  Qa5 {[%clk 0:03:01]} 13. O-O {[%clk 0:02:34]}  Rfd8 {[%clk 0:02:59]} 14. d5 {[%clk 0:02:31]}  Qxd2 {[%clk 0:02:58]} 15. Rxd2 {[%clk 0:02:32]}  Na5 {[%clk 0:02:48]} 16. Rc1 {[%clk 0:02:25]}  Rac8 {[%clk 0:02:42]} 17. Rdc2 {[%clk 0:02:23]}  Rxc2 {[%clk 0:02:43]} 18. Rxc2 {[%clk 0:02:24]}  b6 {[%clk 0:02:07]} 19. Rc7 {[%clk 0:02:21]}  e6 {[%clk 0:02:01]} 20. Rxa7 {[%clk 0:02:15]}  exd5 {[%clk 0:01:55]} 21. exd5 {[%clk 0:02:15]}  Rb8 {[%clk 0:01:23]} 22. h3 {[%clk 0:02:08]}  Bxf3 {[%clk 0:01:23]} 23. Bxf3 {[%clk 0:02:09]}  Nc4 {[%clk 0:01:24]} 24. Bf4 {[%clk 0:02:03]}  Be5 {[%clk 0:01:24]} 25. Bxe5 {[%clk 0:01:54]}  Nxe5 {[%clk 0:01:24]} 26. Be2 {[%clk 0:01:55]}  Rd8 {[%clk 0:01:23]} 27. f4 {[%clk 0:01:52]}  Nd7 {[%clk 0:01:24]} 28. Bb5 {[%clk 0:01:46]}  Nf6 {[%clk 0:01:22]} 29. Bc4 {[%clk 0:01:35]}  Nxd5 {[%clk 0:01:18]} 30. Kf2 {[%clk 0:01:35]}  Rd6 {[%clk 0:00:26]} 31. Kf3 {[%clk 0:01:32]}  Kf8 {[%clk 0:00:09]} 32. Rb7 {[%clk 0:01:29]}  Ne7 {[%clk 0:00:09]} 33. Ke4 {[%clk 0:01:19]}  h5 {[%clk 0:00:09]} 34. g4 {[%clk 0:01:14]}  hxg4 {[%clk 0:00:09]} 35. hxg4 {[%clk 0:01:15]}  Rc6 {[%clk 0:00:10]} 36. Kd4 {[%clk 0:01:08]}  Rd6+ {[%clk 0:00:09]} 37. Ke4 {[%clk 0:01:07]}  Rc6 {[%clk 0:00:09]} 38. Bb3 {[%clk 0:00:58]}  Rd6 {[%clk 0:00:10]} 39. Ke5 {[%clk 0:00:55]}  Rc6 {[%clk 0:00:10]} 40. f5 {[%clk 0:00:51]}  gxf5 {[%clk 0:00:10]} 41. gxf5 {[%clk 0:00:52]}  Rc5+ {[%clk 0:00:10]} 42. Ke4 {[%clk 0:00:50]}  Rc6 {[%clk 0:00:07]} 43. Ke5 {[%clk 0:00:48]}  Rc5+ {[%clk 0:00:08]} 44. Ke4 {[%clk 0:00:47]}  Rc6 {[%clk 0:00:07]} 45. a4 {[%clk 0:00:45]}  f6 {[%clk 0:00:04]} 46. Be6 {[%clk 0:00:40]}  Rd6 {[%clk 0:00:03]} 47. Rc7 {[%clk 0:00:37]}  Nc6 {[%clk 0:00:03]} 48. Rf7+ {[%clk 0:00:34]}  Ke8 {[%clk 0:00:04]} 49. Rxf6 {[%clk 0:00:35]}  Rd4+ {[%clk 0:00:05]} 50. Ke3 {[%clk 0:00:32]}  Rxa4 {[%clk 0:00:05]} 51. Bd5 {[%clk 0:00:24]}  Ra3+ {[%clk 0:00:06]} 52. Kf4 {[%clk 0:00:22]}  Ne7 {[%clk 0:00:04]} 53. Be6 {[%clk 0:00:19]}  b5 {[%clk 0:00:04]} 54. Rh6 {[%clk 0:00:18]}  Nxf5 {[%clk 0:00:04]} 55. Kxf5 {[%clk 0:00:15]}  Ke7 {[%clk 0:00:04]} 56. Rh7+ {[%clk 0:00:13]}  Kd6 {[%clk 0:00:05]} 57. Bg8 {[%clk 0:00:11]}  Re3 {[%clk 0:00:04]} 58. Kf4 {[%clk 0:00:11]}  Re1 {[%clk 0:00:04]} 59. Rb7 {[%clk 0:00:09]}  Kc6 {[%clk 0:00:04]} 60. Rb8 {[%clk 0:00:08]}  Kc5 {[%clk 0:00:04]} 61. Bh7 {[%clk 0:00:07]}  b4 {[%clk 0:00:05]} 62. Be4 {[%clk 0:00:06]}  Kc4 {[%clk 0:00:05]} 63. Rc8+ {[%clk 0:00:05]}  Kd4 {[%clk 0:00:05]} 64. Rd8+ {[%clk 0:00:05]}  Kc3 {[%clk 0:00:05]} 65. Ke5 {[%clk 0:00:05]}  b3 {[%clk 0:00:06]} 66. Rc8+ {[%clk 0:00:04]}  Kb4 {[%clk 0:00:05]} 67. Kd4 {[%clk 0:00:04]}  Rg1 {[%clk 0:00:04]} 68. Bd3 {[%clk 0:00:04]}  Rg4+ {[%clk 0:00:04]} 69. Be4 {[%clk 0:00:05]}  b2 {[%clk 0:00:05]} 70. Rb8+ {[%clk 0:00:05]}  Ka3 {[%clk 0:00:05]} 71. Kc3 {[%clk 0:00:04]}  Rxe4 {[%clk 0:00:05]} 72. Ra8+ {[%clk 0:00:04]}  Ra4 {[%clk 0:00:05]} 73. Rxa4+ {[%clk 0:00:04]}  Kxa4 {[%clk 0:00:06]} 74. Kxb2 {[%clk 0:00:05]} 1/2-1/2


[Site "https://www.chess.com"]

[Event "Titled Tuesday Blitz December 13 Late 2022"]
[White "Barria Zuniga, Daniel"]
[Black "Nakamura, Hikaru"]
[WhiteFideId "3400816"]
[BlackFideId "2016192"]
[WhiteElo "2414"]
[BlackElo "2909"]
[Result "0-1"]
[Round "02"]
[TimeControl "180+1"]
[Date "2022.12.13"]
[WhiteClock "0:00:20"]
[BlackClock "0:01:38"]

1. d4 {[%clk 0:03:00]}  g6 {[%clk 0:02:59]} 2. c4 {[%clk 0:02:59]}  Bg7 {[%clk 0:02:59]} 3. e4 {[%clk 0:02:58]}  d6 {[%clk 0:02:59]} 4. Nc3 {[%clk 0:02:57]}  Nd7 {[%clk 0:02:59]} 5. Nf3 {[%clk 0:02:57]}  e5 {[%clk 0:03:00]} 6. Be2 {[%clk 0:02:55]}  Ne7 {[%clk 0:02:59]} 7. O-O {[%clk 0:02:55]}  O-O {[%clk 0:03:00]} 8. Be3 {[%clk 0:02:47]}  f5 {[%clk 0:03:00]} 9. Ng5 {[%clk 0:02:45]}  Nb8 {[%clk 0:02:54]} 10. dxe5 {[%clk 0:02:25]}  Bxe5 {[%clk 0:02:53]} 11. f4 {[%clk 0:02:24]}  Bf6 {[%clk 0:02:47]} 12. c5 {[%clk 0:02:17]}  h6 {[%clk 0:02:35]} 13. Qb3+ {[%clk 0:02:12]}  Kg7 {[%clk 0:02:36]} 14. Ne6+ {[%clk 0:02:11]}  Bxe6 {[%clk 0:02:36]} 15. Qxe6 {[%clk 0:02:12]}  fxe4 {[%clk 0:02:31]} 16. cxd6 {[%clk 0:01:38]}  cxd6 {[%clk 0:02:27]} 17. Nxe4 {[%clk 0:01:32]}  Nf5 {[%clk 0:02:27]} 18. Nxf6 {[%clk 0:01:30]}  Rxf6 {[%clk 0:02:11]} 19. Qb3 {[%clk 0:01:28]}  Nxe3 {[%clk 0:02:11]} 20. Qxe3 {[%clk 0:01:27]}  Nd7 {[%clk 0:02:10]} 21. Rfd1 {[%clk 0:01:23]}  Qb6 {[%clk 0:02:09]} 22. Qxb6 {[%clk 0:01:18]}  Nxb6 {[%clk 0:02:10]} 23. g3 {[%clk 0:01:15]}  Re8 {[%clk 0:02:08]} 24. Bf3 {[%clk 0:01:13]}  g5 {[%clk 0:02:09]} 25. Rac1 {[%clk 0:00:50]}  gxf4 {[%clk 0:02:08]} 26. Rc7+ {[%clk 0:00:49]}  Kh8 {[%clk 0:01:59]} 27. gxf4 {[%clk 0:00:48]}  Rxf4 {[%clk 0:01:59]} 28. Bxb7 {[%clk 0:00:46]}  Rg8+ {[%clk 0:01:57]} 29. Kh1 {[%clk 0:00:45]}  d5 {[%clk 0:01:53]} 30. b3 {[%clk 0:00:41]}  Rf2 {[%clk 0:01:52]} 31. Ba6 {[%clk 0:00:36]}  Rgg2 {[%clk 0:01:45]} 32. Bf1 {[%clk 0:00:32]}  Rg7 {[%clk 0:01:41]} 33. Rxg7 {[%clk 0:00:25]}  Kxg7 {[%clk 0:01:42]} 34. a4 {[%clk 0:00:25]}  d4 {[%clk 0:01:38]} 35. Kg1 {[%clk 0:00:25]}  Rf4 {[%clk 0:01:38]} 36. Bg2 {[%clk 0:00:20]}  Kf6 {[%clk 0:01:37]} 37. a5 {[%clk 0:00:19]}  Nd7 {[%clk 0:01:37]} 38. Rf1 {[%clk 0:00:18]}  Ke5 {[%clk 0:01:35]} 39. Rxf4 {[%clk 0:00:18]}  Kxf4 {[%clk 0:01:36]} 40. Bf1 {[%clk 0:00:17]}  Ke3 {[%clk 0:01:36]} 41. b4 {[%clk 0:00:16]}  d3 {[%clk 0:01:35]} 42. Bxd3 {[%clk 0:00:16]}  Kxd3 {[%clk 0:01:35]} 43. b5 {[%clk 0:00:17]}  Kc4 {[%clk 0:01:36]} 44. b6 {[%clk 0:00:17]}  Nxb6 {[%clk 0:01:36]} 45. axb6 {[%clk 0:00:18]}  axb6 {[%clk 0:01:37]} 46. Kf2 {[%clk 0:00:17]}  b5 {[%clk 0:01:37]} 47. Ke1 {[%clk 0:00:18]}  b4 {[%clk 0:01:37]} 48. Kd2 {[%clk 0:00:19]}  Kb3 {[%clk 0:01:37]} 49. Kc1 {[%clk 0:00:20]}  Ka2 {[%clk 0:01:38]} 0-1


[Site "https://www.chess.com"]

[Event "Titled Tuesday Blitz December 13 Late 2022"]
[White "Bluebaum, Matthias"]
[Black "Parkhov, Yair"]
[WhiteFideId "24651516"]
[BlackFideId "2813408"]
[WhiteElo "2634"]
[BlackElo "2421"]
[Result "1-0"]
[Round "02"]
[TimeControl "180+1"]
[Date "2022.12.13"]
[WhiteClock "0:01:03"]
[BlackClock "0:00:05"]

1. d4 {[%clk 0:03:00]}  Nf6 {[%clk 0:02:58]} 2. c4 {[%clk 0:03:00]}  e6 {[%clk 0:02:58]} 3. Nc3 {[%clk 0:03:00]}  d5 {[%clk 0:02:45]} 4. cxd5 {[%clk 0:03:00]}  exd5 {[%clk 0:02:39]} 5. Bg5 {[%clk 0:03:00]}  c6 {[%clk 0:02:39]} 6. e3 {[%clk 0:03:00]}  Bd6 {[%clk 0:02:40]} 7. Bd3 {[%clk 0:02:58]}  O-O {[%clk 0:02:40]} 8. Nf3 {[%clk 0:02:59]}  Re8 {[%clk 0:02:37]} 9. Qc2 {[%clk 0:02:54]}  h6 {[%clk 0:02:29]} 10. Bh4 {[%clk 0:02:54]}  Bg4 {[%clk 0:02:29]} 11. Qb3 {[%clk 0:02:44]}  Na6 {[%clk 0:02:22]} 12. a3 {[%clk 0:02:35]}  Nc7 {[%clk 0:02:04]} 13. Qxb7 {[%clk 0:02:24]}  c5 {[%clk 0:01:21]} 14. dxc5 {[%clk 0:02:15]}  Bxc5 {[%clk 0:01:12]} 15. Bxf6 {[%clk 0:02:04]}  gxf6 {[%clk 0:00:25]} 16. O-O {[%clk 0:02:03]}  Qd7 {[%clk 0:00:17]} 17. Bb5 {[%clk 0:01:53]}  Nxb5 {[%clk 0:00:07]} 18. Qxb5 {[%clk 0:01:54]}  Qxb5 {[%clk 0:00:05]} 19. Nxb5 {[%clk 0:01:55]}  Bxf3 {[%clk 0:00:06]} 20. gxf3 {[%clk 0:01:55]}  Rab8 {[%clk 0:00:06]} 21. Nc7 {[%clk 0:01:47]}  Red8 {[%clk 0:00:07]} 22. Na6 {[%clk 0:01:45]}  Rbc8 {[%clk 0:00:04]} 23. Rac1 {[%clk 0:01:23]}  Bb6 {[%clk 0:00:04]} 24. Rxc8 {[%clk 0:01:24]}  Rxc8 {[%clk 0:00:05]} 25. Nb4 {[%clk 0:01:25]}  d4 {[%clk 0:00:05]} 26. e4 {[%clk 0:01:25]}  Kg7 {[%clk 0:00:03]} 27. Rd1 {[%clk 0:01:24]}  f5 {[%clk 0:00:02]} 28. Kf1 {[%clk 0:01:21]}  fxe4 {[%clk 0:00:02]} 29. fxe4 {[%clk 0:01:22]}  f5 {[%clk 0:00:02]} 30. exf5 {[%clk 0:01:20]}  Kf6 {[%clk 0:00:03]} 31. Nd5+ {[%clk 0:01:21]}  Ke5 {[%clk 0:00:03]} 32. Nxb6 {[%clk 0:01:12]}  axb6 {[%clk 0:00:04]} 33. Rd3 {[%clk 0:01:13]}  Rc2 {[%clk 0:00:04]} 34. Rb3 {[%clk 0:01:13]}  Rc6 {[%clk 0:00:03]} 35. Ke2 {[%clk 0:01:12]}  Kxf5 {[%clk 0:00:03]} 36. Kd3 {[%clk 0:01:12]}  Rd6 {[%clk 0:00:02]} 37. Rb4 {[%clk 0:01:06]}  Ke5 {[%clk 0:00:02]} 38. a4 {[%clk 0:01:06]}  h5 {[%clk 0:00:02]} 39. Rb5+ {[%clk 0:01:05]}  Kf4 {[%clk 0:00:02]} 40. Rxh5 {[%clk 0:01:06]}  Kf3 {[%clk 0:00:03]} 41. Rf5+ {[%clk 0:01:05]}  Kg4 {[%clk 0:00:03]} 42. Rf8 {[%clk 0:01:04]}  Kh3 {[%clk 0:00:03]} 43. Rf4 {[%clk 0:01:04]}  Kxh2 {[%clk 0:00:03]} 44. Rxd4 {[%clk 0:01:04]}  Rf6 {[%clk 0:00:04]} 45. f4 {[%clk 0:01:04]}  Kg3 {[%clk 0:00:04]} 46. Kc4 {[%clk 0:01:05]}  Kf3 {[%clk 0:00:04]} 47. Kb5 {[%clk 0:01:04]}  Ke3 {[%clk 0:00:04]} 48. Rb4 {[%clk 0:01:05]}  Kd3 {[%clk 0:00:05]} 49. Ka6 {[%clk 0:01:04]}  Rf5 {[%clk 0:00:05]} 50. Kxb6 {[%clk 0:01:03]}  Kc2 {[%clk 0:00:05]} 51. a5 {[%clk 0:01:03]} 1-0


[Site "https://www.chess.com"]

[Event "Titled Tuesday Blitz December 13 Late 2022"]
[White "Bogaudinov, Rushan"]
[Black "Burke, Paul"]
[WhiteFideId "4129288"]
[BlackFideId "2605767"]
[WhiteElo "2028"]
[BlackElo "1922"]
[Result "1-0"]
[Round "02"]
[TimeControl "180+1"]
[Date "2022.12.14"]
[WhiteClock "0:01:24"]
[BlackClock "0:00:18"]

1. e4 {[%clk 0:02:59]}  e5 {[%clk 0:02:58]} 2. Nc3 {[%clk 0:02:58]}  Nc6 {[%clk 0:02:57]} 3. Nf3 {[%clk 0:02:56]}  Be7 {[%clk 0:02:56]} 4. Bb5 {[%clk 0:02:55]}  d6 {[%clk 0:02:55]} 5. d4 {[%clk 0:02:54]}  exd4 {[%clk 0:02:54]} 6. Nxd4 {[%clk 0:02:55]}  Bd7 {[%clk 0:02:55]} 7. O-O {[%clk 0:02:49]}  Nf6 {[%clk 0:02:55]} 8. Nf5 {[%clk 0:02:45]}  Bxf5 {[%clk 0:02:47]} 9. exf5 {[%clk 0:02:45]}  O-O {[%clk 0:02:47]} 10. Re1 {[%clk 0:02:40]}  a6 {[%clk 0:02:44]} 11. Bf1 {[%clk 0:02:35]}  Qd7 {[%clk 0:02:36]} 12. g4 {[%clk 0:02:33]}  Ne5 {[%clk 0:02:06]} 13. h3 {[%clk 0:02:29]}  h5 {[%clk 0:02:00]} 14. f4 {[%clk 0:02:19]}  Nexg4 {[%clk 0:01:55]} 15. hxg4 {[%clk 0:02:17]}  Nxg4 {[%clk 0:01:55]} 16. Bd3 {[%clk 0:02:14]}  Bh4 {[%clk 0:01:50]} 17. Re2 {[%clk 0:02:12]}  Rae8 {[%clk 0:01:26]} 18. Bd2 {[%clk 0:02:12]}  Rxe2 {[%clk 0:01:25]} 19. Qxe2 {[%clk 0:02:12]}  Re8 {[%clk 0:01:24]} 20. Qg2 {[%clk 0:02:10]}  Nf2 {[%clk 0:01:13]} 21. Qf3 {[%clk 0:01:48]}  Nxd3 {[%clk 0:00:45]} 22. Qxd3 {[%clk 0:01:47]}  c6 {[%clk 0:00:35]} 23. Kg2 {[%clk 0:01:44]}  d5 {[%clk 0:00:30]} 24. Rh1 {[%clk 0:01:43]}  Qe7 {[%clk 0:00:25]} 25. Qh3 {[%clk 0:01:27]}  g5 {[%clk 0:00:18]} 26. fxg6 {[%clk 0:01:24]} 1-0


[Site "https://www.chess.com"]